fUSD/lending_fUSD_20240103
["ID","MTS","AMOUNT","RATE_DAILY","PERIOD"]
[310012100,1704285085783,-500.0,0.00032876,2]
[310012101,1704285085793,-216.1843301,0.00032876,2]
[310012102,1704285085803,-201.8573017,0.00032876,2]
[310012103,1704285085814,-572.54,0.00032876,2]
[310012104,1704285085824,-500.0,0.00032876,2]
[310012105,1704285085838,-500.0,0.00032876,2]
[310012106,1704285085849,-500.0,0.00032876,2]
[310012107,1704285085860,-500.0,0.00032876,2]
[310012108,1704285085870,-500.0,0.00032876,2]
[310012109,1704285085880,-500.0,0.00032876,2]
[310012110,1704285085891,-500.0,0.00032876,2]
[310012111,1704285085900,-500.0,0.00032876,2]
[310012112,1704285085912,-500.0,0.00032876,2]
[310012113,1704285085923,-500.0,0.00032876,2]
[310012114,1704285085936,-500.0,0.00032876,2]
[310012115,1704285085945,-200.29,0.00032876,2]
[310012116,1704285085955,-152.14466174,0.00032876,2]
[310012117,1704285085964,-518.6850489,0.00032876,2]
[310012118,1704285085974,-1222.62,0.00032876,2]
[310012119,1704285085983,-1222.62,0.00032876,2]
[310012120,1704285085994,-1222.62,0.00032876,2]
[310012121,1704285086003,-643.62,0.00032876,2]
[310012122,1704285086014,-643.62,0.00032876,2]
[310012123,1704285086023,-1222.62,0.00032876,2]
[310012124,1704285086033,-500.0,0.00032876,2]
[310012125,1704285086043,-1222.62,0.00032876,2]
[310012126,1704285086053,-643.62,0.00032876,2]
[310012127,1704285086063,-500.0,0.00032876,2]
[310012128,1704285086073,-1222.62,0.00032876,2]
[310012129,1704285086084,-643.62,0.00032876,2]
[310012130,1704285086094,-1222.62,0.00032876,2]
[310012131,1704285086105,-643.62,0.00032876,2]
[310012132,1704285086115,-1222.62,0.00032876,2]
[310012133,1704285086126,-445.72,0.00032876,2]
[310012134,1704285086137,-643.62,0.00032876,2]
[310012135,1704285086148,-1222.62,0.00032876,2]
[310012136,1704285086159,-500.0,0.00032876,2]
[310012137,1704285086170,-643.62,0.00032876,2]
[310012138,1704285086183,-500.0,0.00032876,2]
[310012139,1704285086194,-643.62,0.00032876,2]
[310012140,1704285086204,-1222.62,0.00032876,2]
[310012141,1704285086214,-500.0,0.00032876,2]
[310012142,1704285086224,-500.0,0.00032876,2]
[310012143,1704285086233,-1222.62,0.00032876,2]
[310012144,1704285086243,-643.62,0.00032876,2]
[310012145,1704285086253,-1222.62,0.00032876,2]
[310012146,1704285086263,-643.62,0.00032876,2]
[310012147,1704285086274,-1222.62,0.00032876,2]
[310012148,1704285086283,-643.62,0.00032876,2]
[310012149,1704285086293,-1222.62,0.00032876,2]
[310012150,1704285086303,-643.62,0.00032876,2]
[310012151,1704285086313,-643.62,0.00032876,2]
[310012152,1704285086323,-1222.62,0.00032876,2]
[310012153,1704285086332,-500.0,0.00032876,2]
[310012154,1704285086342,-1222.62,0.00032876,2]
[310012155,1704285086351,-643.62,0.00032876,2]
[310012156,1704285086361,-500.0,0.00032876,2]
[310012157,1704285086371,-500.0,0.00032876,2]
[310012158,1704285086381,-500.0,0.00032876,2]
[310012159,1704285086392,-500.0,0.00032876,2]
[310012160,1704285086402,-500.0,0.00032876,2]
[310012161,1704285086412,-500.0,0.00032876,2]
[310012162,1704285086425,-500.0,0.00032876,2]
[310012163,1704285086438,-500.0,0.00032876,2]
[310012164,1704285086448,-500.0,0.00032876,2]
[310012165,1704285086458,-500.0,0.00032876,2]
[310012166,1704285086614,-500.0,0.00032876,2]
[310012167,1704285086624,-500.0,0.00032876,2]
[310012168,1704285086634,-500.0,0.00032876,2]
[310012169,1704285086644,-500.0,0.00032876,2]
[310012170,1704285086653,-500.0,0.00032876,2]
[310012171,1704285086663,-500.0,0.00032876,2]
[310012172,1704285086673,-500.0,0.00032876,2]
[310012173,1704285086693,-500.0,0.00032876,2]
[310012174,1704285086706,-596.71853933,0.00032876,2]
[310012175,1704285086717,-500.0,0.00032876,2]
[310012176,1704285086727,-500.0,0.00032876,2]
[310012177,1704285086738,-500.0,0.00032876,2]
[310012178,1704285086748,-500.0,0.00032876,2]
[310012179,1704285086759,-183.9670458,0.00032876,2]
[310012180,1704285086770,-500.0,0.00032876,2]
[310012181,1704285086781,-500.0,0.00032876,2]
[310012182,1704285086791,-500.0,0.00032876,2]
[310012183,1704285086802,-500.0,0.00032876,2]
[310012184,1704285086813,-578.5,0.00032876,2]
[310012185,1704285086823,-334.17,0.00032876,2]
[310012186,1704285086834,-500.0,0.00032876,2]
[310012187,1704285086845,-578.5,0.00032876,2]
[310012188,1704285086856,-500.0,0.00032876,2]
[310012189,1704285086866,-500.0,0.00032876,2]
[310012190,1704285086876,-545.89805811,0.00032876,2]
[310012191,1704285086887,-500.0,0.00032876,2]
[310012192,1704285086897,-578.5,0.00032876,2]
[310012193,1704285086907,-500.0,0.00032876,2]
[310012194,1704285086918,-578.5,0.00032876,2]
[310012195,1704285086933,-500.0,0.00032876,2]
[310012196,1704285086944,-500.0,0.00032876,2]
[310012197,1704285086954,-500.0,0.00032876,2]
[310012198,1704285086965,-578.5,0.00032876,2]
[310012199,1704285086975,-500.0,0.00032876,2]
[310012200,1704285086986,-578.5,0.00032876,2]
[310012201,1704285087000,-578.5,0.00032876,2]
[310012202,1704285087010,-500.0,0.00032876,2]
[310012203,1704285087020,-578.5,0.00032876,2]
[310012204,1704285087031,-500.0,0.00032876,2]
[310012205,1704285087044,-422.08596168,0.00032876,2]
[310012206,1704285087055,-578.5,0.00032876,2]
[310012207,1704285087066,-578.5,0.00032876,2]
[310012208,1704285087076,-500.0,0.00032876,2]
[310012209,1704285087089,-578.5,0.00032876,2]
[310012210,1704285087099,-578.5,0.00032876,2]
[310012211,1704285087110,-500.0,0.00032876,2]
[310012212,1704285087121,-500.0,0.00032876,2]
[310012213,1704285087133,-578.5,0.00032876,2]
[310012214,1704285087143,-500.0,0.00032876,2]
[310012215,1704285087154,-500.0,0.00032876,2]
[310012216,1704285087165,-578.5,0.00032876,2]
[310012217,1704285087177,-500.0,0.00032876,2]
[310012218,1704285087191,-450.16202504,0.00032876,2]
[310012219,1704285087201,-500.0,0.00032876,2]
[310012220,1704285087212,-485.75211283,0.00032876,2]
[310012221,1704285087597,-14.24788717,0.00032876,2]
[310012222,1704285087607,-500.0,0.00032876,2]
[310012223,1704285087616,-712.38,0.00032876,2]
[310012224,1704285087626,-712.38,0.00032876,2]
[310012225,1704285087636,-500.0,0.00032876,2]
[310012226,1704285087646,-712.38,0.00032876,2]
[310012227,1704285087656,-500.0,0.00032876,2]
[310012228,1704285087666,-500.0,0.00032876,2]
[310012229,1704285087675,-500.0,0.00032876,2]
[310012230,1704285087687,-712.38,0.00032876,2]
[310012231,1704285087697,-500.0,0.00032876,2]
[310012232,1704285087706,-712.38,0.00032876,2]
[310012233,1704285087715,-500.0,0.00032876,2]
[310012234,1704285087724,-500.0,0.00032876,2]
[310012235,1704285087735,-500.0,0.00032876,2]
[310012236,1704285087744,-712.38,0.00032876,2]
[310012237,1704285087753,-430.29255738,0.00032876,2]
[310012238,1704285087762,-500.0,0.00032876,2]
[310012239,1704285087771,-500.0,0.00032876,2]
[310012240,1704285087781,-712.38,0.00032876,2]
[310012241,1704285087790,-500.0,0.00032876,2]
[310012242,1704285087799,-500.0,0.00032876,2]
[310012243,1704285087808,-712.38,0.00032876,2]
[310012244,1704285087817,-712.38,0.00032876,2]
[310012245,1704285087827,-712.38,0.00032876,2]
[310012246,1704285087836,-500.0,0.00032876,2]
[310012247,1704285087846,-712.38,0.00032876,2]
[310012248,1704285087856,-500.0,0.00032876,2]
[310012249,1704285087866,-712.38,0.00032876,2]
[310012250,1704285087875,-712.38,0.00032876,2]
[310012251,1704285087884,-481.56,0.00032876,2]
[310012252,1704285087894,-712.38,0.00032876,2]
[310012253,1704285087903,-712.38,0.00032876,2]
[310012254,1704285087912,-500.0,0.00032876,2]
[310012255,1704285087922,-500.0,0.00032876,2]
[310012256,1704285087934,-500.0,0.00032876,2]
[310012257,1704285087943,-525.7834104,0.00032876,2]
[310012258,1704285087953,-500.0,0.00032876,2]
[310012259,1704285087962,-500.0,0.00032876,2]
[310012260,1704285087972,-500.0,0.00032876,2]
[310012261,1704285087982,-500.0,0.00032876,2]
[310012262,1704285087994,-500.0,0.00032876,2]
[310012263,1704285088003,-500.0,0.00032876,2]
[310012264,1704285088014,-500.0,0.00032876,2]
[310012265,1704285088024,-500.0,0.00032876,2]
[310012266,1704285088033,-500.0,0.00032876,2]
[310012267,1704285088043,-500.0,0.00032876,2]
[310012268,1704285088053,-500.0,0.00032876,2]
[310012269,1704285088062,-500.0,0.00032876,2]
[310012270,1704285088071,-500.0,0.00032876,2]
[310012271,1704285088080,-500.0,0.00032876,2]
[310012272,1704285088090,-500.0,0.00032876,2]
[310012273,1704285088103,-497.56,0.00032876,2]
[310012274,1704285088113,-500.0,0.00032876,2]
[310012275,1704285088125,-500.0,0.00032876,2]
[310012276,1704285088134,-500.0,0.00032876,2]
[310012277,1704285088143,-500.0,0.00032876,2]
[310012278,1704285088153,-500.0,0.00032876,2]
[310012279,1704285088163,-500.0,0.00032876,2]
[310012280,1704285088172,-216.81452287,0.00032876,2]
[310012281,1704285088185,-500.0,0.00032876,2]
[310012282,1704285088194,-500.0,0.00032876,2]
[310012283,1704285088203,-581.62,0.00032876,2]
[310012284,1704285088212,-965.4,0.00032876,2]
[310012285,1704285088222,-965.4,0.00032876,2]
[310012286,1704285088231,-965.4,0.00032876,2]
[310012287,1704285088241,-500.0,0.00032876,2]
[310012288,1704285088251,-500.0,0.00032876,2]
[310012289,1704285088261,-965.4,0.00032876,2]
[310012290,1704285088271,-500.0,0.00032876,2]
[310012291,1704285088280,-500.0,0.00032876,2]
[310012292,1704285088291,-965.4,0.00032876,2]
[310012293,1704285088301,-500.0,0.00032876,2]
[310012294,1704285088311,-500.0,0.00032876,2]
[310012295,1704285088320,-965.4,0.00032876,2]
[310012296,1704285088330,-500.0,0.00032876,2]
[310012297,1704285088340,-500.0,0.00032876,2]
[310012298,1704285088350,-500.0,0.00032876,2]
[310012299,1704285088360,-500.0,0.00032876,2]
[310012300,1704285088370,-965.4,0.00032876,2]
[310012301,1704285088379,-500.0,0.00032876,2]
[310012302,1704285088389,-500.0,0.00032876,2]
[310012303,1704285088399,-500.0,0.00032876,2]
[310012304,1704285088408,-500.0,0.00032876,2]
[310012305,1704285088418,-500.0,0.00032876,2]
[310012306,1704285088428,-500.0,0.00032876,2]
[310012307,1704285088440,-544.78,0.00032876,2]
[310012308,1704285088452,-965.4,0.00032876,2]
[310012309,1704285088462,-500.0,0.00032876,2]
[310012310,1704285088473,-500.0,0.00032876,2]
[310012311,1704285088482,-500.0,0.00032876,2]
[310012312,1704285088492,-965.4,0.00032876,2]
[310012313,1704285088502,-500.0,0.00032876,2]
[310012314,1704285088512,-500.0,0.00032876,2]
[310012315,1704285088522,-965.4,0.00032876,2]
[310012316,1704285088532,-500.0,0.00032876,2]
[310012317,1704285088543,-500.0,0.00032876,2]
[310012318,1704285088554,-500.0,0.00032876,2]
[310012319,1704285088564,-194.30697481,0.00032876,2]
[310012320,1704285088581,-771.09302519,0.00032876,2]
[310012321,1704285088591,-500.0,0.00032876,2]
[310012322,1704285088601,-573.98,0.00032876,2]
[310012323,1704285088610,-500.0,0.00032876,2]
[310012324,1704285088620,-500.0,0.00032876,2]
[310012325,1704285088629,-500.0,0.00032876,2]
[310012326,1704285088640,-500.0,0.00032876,2]
[310012327,1704285088649,-500.0,0.00032876,2]
[310012328,1704285088660,-500.0,0.00032876,2]
[310012329,1704285088669,-965.4,0.00032876,2]
[310012330,1704285088679,-500.0,0.00032876,2]
[310012331,1704285088691,-500.0,0.00032876,2]
[310012332,1704285088701,-500.0,0.00032876,2]
[310012333,1704285088710,-965.4,0.00032876,2]
[310012334,1704285088720,-500.0,0.00032876,2]
[310012335,1704285088730,-500.0,0.00032876,2]
[310012336,1704285088885,-390.59816225,0.00032876,2]
[310012337,1704285088896,-500.0,0.00032876,2]
[310012338,1704285088906,-1000.0,0.00032876,2]
[310012339,1704285088916,-500.0,0.00032876,2]
[310012340,1704285088926,-500.0,0.00032876,2]
[310012341,1704285088937,-965.4,0.00032876,2]
[310012342,1704285088946,-500.0,0.00032876,2]
[310012343,1704285088955,-1000.0,0.00032876,2]
[310012344,1704285088977,-500.0,0.00032876,2]
[310012345,1704285088988,-965.4,0.00032876,2]
[310012346,1704285089001,-254.39423815,0.00032876,2]
[310012347,1704285089012,-500.0,0.00032876,2]
[310012348,1704285089022,-500.0,0.00032876,2]
[310012349,1704285089033,-500.0,0.00032876,2]
[310012350,1704285089045,-500.0,0.00032876,2]
[310012351,1704285089056,-500.0,0.00032876,2]
[310012352,1704285089066,-500.0,0.00032876,2]
[310012353,1704285089077,-500.0,0.00032876,2]
[310012354,1704285089089,-500.0,0.00032876,2]
[310012355,1704285089100,-500.0,0.00032876,2]
[310012356,1704285089110,-127.57650792,0.00032876,2]
[310012357,1704285089416,-372.42349208,0.00032876,2]
[310012358,1704285089426,-500.0,0.00032876,2]
[310012359,1704285089437,-500.0,0.00032876,2]
[310012360,1704285089447,-500.0,0.00032876,2]
[310012361,1704285089456,-500.0,0.00032876,2]
[310012362,1704285089466,-500.0,0.00032876,2]
[310012363,1704285089476,-500.0,0.00032876,2]
[310012364,1704285089487,-500.0,0.00032876,2]
[310012365,1704285089498,-659.66,0.00032876,5]
[310012366,1704285089508,-500.0,0.00032876,2]
[310012367,1704285089517,-500.0,0.00032876,2]
[310012368,1704285089527,-500.0,0.00032876,2]
[310012369,1704285089537,-659.66,0.00032876,5]
[310012370,1704285089546,-500.0,0.00032876,2]
[310012371,1704285089556,-500.0,0.00032876,2]
[310012372,1704285089565,-659.66,0.00032876,5]
[310012373,1704285089575,-267.06282064,0.00032876,2]
[310012374,1704285089585,-177.71128798,0.00032876,2]
[310012375,1704285089595,-500.0,0.00032876,2]
[310012376,1704285089606,-659.66,0.00032876,5]
[310012377,1704285089615,-659.66,0.00032876,5]
[310012378,1704285089626,-500.0,0.00032876,2]
[310012379,1704285089637,-260.79754903,0.00032876,2]
[310012380,1704285089647,-659.66,0.00032876,5]
[310012381,1704285089656,-500.0,0.00032876,2]
[310012382,1704285089667,-659.66,0.00032876,5]
[310012383,1704285089677,-500.0,0.00032876,2]
[310012384,1704285089690,-500.0,0.00032876,2]
[310012385,1704285089700,-659.66,0.00032876,5]
[310012386,1704285089710,-500.0,0.00032876,2]
[310012387,1704285089720,-500.0,0.00032876,2]
[310012388,1704285089730,-500.0,0.00032876,2]
[310012389,1704285089740,-500.0,0.00032876,2]
[310012390,1704285089750,-500.0,0.00032876,2]
[310012391,1704285089760,-500.0,0.00032876,2]
[310012392,1704285089770,-500.0,0.00032876,2]
[310012393,1704285089780,-500.0,0.00032876,2]
[310012394,1704285089790,-600.94444845,0.00032876,2]
[310012395,1704285089800,-500.0,0.00032876,2]
[310012396,1704285089810,-167.25366633,0.00032876,2]
[310012397,1704285089820,-500.0,0.00032876,2]
[310012398,1704285089830,-500.0,0.00032876,2]
[310012399,1704285089840,-659.66,0.00032876,5]
[310012400,1704285089850,-248.54079204,0.00032876,2]
[310012401,1704285089859,-659.66,0.00032876,5]
[310012402,1704285089869,-850.23,0.00032876,2]
[310012403,1704285089879,-659.66,0.00032876,5]
[310012404,1704285089889,-850.23,0.00032876,2]
[310012405,1704285089898,-659.66,0.00032876,5]
[310012406,1704285089908,-850.23,0.00032876,2]
[310012407,1704285089918,-659.66,0.00032876,5]
[310012408,1704285089928,-850.23,0.00032876,2]
[310012409,1704285089940,-659.66,0.00032876,5]
[310012410,1704285089949,-500.0,0.00032876,2]
[310012411,1704285089975,-850.23,0.00032876,2]
[310012412,1704285089997,-659.66,0.00032876,5]
[310012413,1704285090013,-500.0,0.00032876,2]
[310012414,1704285090034,-850.23,0.00032876,2]
[310012415,1704285090054,-500.0,0.00032876,2]
[310012416,1704285090069,-659.66,0.00032876,5]
[310012417,1704285090088,-850.23,0.00032876,2]
[310012418,1704285090106,-631.83,0.00032876,2]
[310012419,1704285090120,-500.0,0.00032876,2]
[310012420,1704285090138,-850.23,0.00032876,2]
[310012421,1704285090157,-500.0,0.00032876,2]
[310012422,1704285090173,-500.0,0.00032876,2]
[310012423,1704285090190,-850.23,0.00032876,2]
[310012424,1704285090211,-500.0,0.00032876,2]
[310012425,1704285090224,-500.0,0.00032876,2]
[310012426,1704285090238,-850.23,0.00032876,2]
[310012427,1704285090252,-500.0,0.00032876,2]
[310012428,1704285090270,-850.23,0.00032876,2]
[310012429,1704285090284,-500.0,0.00032876,2]
[310012430,1704285090298,-533.98318985,0.00032876,2]
[310012431,1704285090317,-850.23,0.00032876,2]
[310012432,1704285090333,-557.00253773,0.00032876,2]
[310012433,1704285090350,-850.23,0.00032876,2]
[310012434,1704285090365,-500.0,0.00032876,2]
[310012435,1704285090381,-524.28446495,0.00032876,2]
[310012436,1704285090402,-325.94553505,0.00032876,2]
[310012437,1704285090417,-500.0,0.00032876,2]
[310012438,1704285090432,-500.0,0.00032876,2]
[310012439,1704285090452,-500.0,0.00032876,2]
[310012440,1704285090466,-500.0,0.00032876,2]
[310012441,1704285090480,-598.43862973,0.00032876,2]
[310012442,1704285090495,-500.0,0.00032876,2]
[310012443,1704285090511,-500.0,0.00032876,2]
[310012444,1704285090527,-500.0,0.00032876,2]
[310012445,1704285090542,-500.0,0.00032876,2]
[310012446,1704285090557,-500.0,0.00032876,2]
[310012447,1704285090573,-500.0,0.00032876,2]
[310012448,1704285090589,-500.0,0.00032876,2]
[310012449,1704285090605,-169.31583522,0.00032876,2]
[310012450,1704285312856,250.0,0.000192,2]
[310012451,1704285350769,99750.0,0.000192,2]
[310012452,1704285350790,10000.0,0.000192,2]
[310012453,1704285350812,10000.0,0.000192,2]
[310012454,1704285350833,10000.0,0.000192,2]
[310012455,1704285350855,10000.0,0.000192,2]
[310012456,1704285350876,10000.0,0.000192,2]
[310012457,1704285350898,10000.0,0.000192,2]
[310012458,1704285350921,10000.0,0.000192,2]
[310012459,1704285350949,10000.0,0.000192,2]
[310012460,1704285350994,961093.10111532,0.000192,2]
[310012461,1704285354793,6066.31265179,0.000192,2]
[310012462,1704285366786,941277.15234487,0.000192,2]
[310012463,1704285366824,199565.94877045,0.000192,2]
[310012464,1704285370793,4933.02328515,0.000192,2]
[310012465,1704285527371,182.97,0.000274,120]
[310012466,1704285536805,508.29805569,0.000192,2]
[310012467,1704285545248,646.23951764,0.000192,2]
[310012468,1704285546119,853.60904369,0.000192,2]
[310012471,1704285739258,-522.20683445,0.00023168,2]
[310012472,1704285739294,-2465.28590103,0.00023169,2]
[310012473,1704285739326,-2312.47292618,0.00023884,2]
[310012474,1704285739358,-4611.87269733,0.00023884,2]
[310012475,1704285739390,-393.85529835,0.00023885,2]
[310012476,1704285739421,-1041.50170874,0.00023885,2]
[310012477,1704285739451,-155.0,0.00023886,2]
[310012478,1704285739481,-362.98644778,0.00023886,2]
[310012479,1704285739510,-931.13114601,0.00023886,2]
[310012480,1704285739543,-300.35878783,0.00023886,2]
[310012481,1704285739573,-217.02178002,0.00023886,2]
[310012482,1704285739798,-372.61294456,0.00023168,2]
[310012490,1704285806346,173.02,0.00019852,2]
[310012498,1704285848295,18914.29766501,0.00019852,2]
[310012499,1704285848329,50466.45608227,0.00019852,2]
[310012500,1704285854398,309.16657707,0.00019851,2]
[310012501,1704285854908,18956.58157169,0.00019851,2]
[310012502,1704285868326,3542.69472411,0.00019852,2]
[310012503,1704285868793,1361.8743856,0.00019852,2]
[310012505,1704285919251,418.39942505,0.00022006,2]
[310012506,1704285922248,155.0,0.00019852,2]
[310012507,1704285922536,155.0,0.00019852,2]
[310012508,1704285924444,218.41865887,0.00017867,2]
[310012512,1704285927981,221.16083271,0.00019852,2]
[310012513,1704285933240,5176.94518474,0.00019852,2]
[310012514,1704285933310,18902.39201384,0.00019852,2]
[310012515,1704285933396,254.81984417,0.00019852,2]
[310012516,1704285935362,254.39279093,0.00019852,2]
[310012517,1704285940253,155.6563649,0.00019852,2]
[310012521,1704285946508,155.0,0.00019852,2]
[310012522,1704285950875,155.0,0.00019852,2]
[310012524,1704285953647,256.03181768,0.00019852,2]
[310012525,1704285957245,5176.94518474,0.00019852,2]
[310012526,1704285958122,176.73856609,0.00019852,2]
[310012527,1704285960510,157.78137279,0.00019852,2]
[310012531,1704285968880,155.0,0.00019852,2]
[310012532,1704285975264,5176.94518474,0.00019852,2]
[310012533,1704285976132,325.22533893,0.00019852,2]
[310012539,1704285991300,257.6418734,0.00019852,2]
[310012540,1704285993254,1389.06568411,0.00019852,2]
[310012555,1704286004034,150.0,0.00021806,2]
[310012559,1704286005310,232.404494,0.00022354,2]
[310012597,1704286038846,151.30015839,0.00022242,15]
[310012603,1704286063042,150.455845,0.00022472,2]
[310012606,1704286085845,615.69895964,0.00022488,2]
[310012608,1704286103121,555.14,0.00022297,2]
[310012609,1704286109042,960.86,0.00022428,2]
[310012610,1704286111733,3655.43,0.00022403,2]
[310012611,1704286128646,23900.0,0.00022403,2]
[310012614,1704286139366,150.0,0.00022313,2]
[310012616,1704286141806,500.0,0.0002235,2]
[310012651,1704286154514,162.62,0.00022459,2]
[310012652,1704286159691,472.01,0.00022292,2]
[310012653,1704286183951,2000.0,0.00022245,2]
[310012654,1704286207056,410.4659731,0.00022473,2]
[310012655,1704286210662,1353.82,0.00022224,2]
[310012656,1704286212501,165.76,0.00022211,2]
[310012657,1704286217387,988.84,0.00020199,2]
[310012658,1704286217761,988.84,0.00022463,2]
[310012659,1704286218529,750.0,0.00022117,2]
[310012702,1704286235514,-241.7259282,0.00022511,2]
[310012703,1704286235525,-155.0,0.00022512,2]
[310012706,1704286235535,-370.01108445,0.00022512,2]
[310012708,1704286235545,-155.0,0.00022513,2]
[310012710,1704286235556,-155.0,0.00022513,2]
[310012712,1704286235566,-3035.94965715,0.00022513,2]
[310012715,1704286235576,-2534.11991002,0.00022513,2]
[310012719,1704286235593,-31118.07211846,0.00022513,2]
[310012722,1704286235607,-202.24308246,0.00022514,2]
[310012725,1704286235618,-2938.34831561,0.00022514,2]
[310012727,1704286235629,-5000.0,0.00022514,2]
[310012729,1704286235640,-2612.12944822,0.00022514,2]
[310012731,1704286235651,-1848.22696457,0.00022515,2]
[310012732,1704286235661,-620.21196217,0.00022516,2]
[310012733,1704286235672,-25136.5154531,0.00022516,2]
[310012734,1704286235683,-3181.30577157,0.00022517,2]
[310012735,1704286235695,-446.17403311,0.00022517,2]
[310012736,1704286235705,-5713.12127591,0.00022517,2]
[310012737,1704286235719,-155.0,0.00022517,2]
[310012738,1704286235729,-10525.07510932,0.00022517,2]
[310012739,1704286235740,-1042.9001587,0.00022518,2]
[310012740,1704286235751,-2130.95546807,0.00022518,2]
[310012741,1704286235763,-697.06047486,0.00022519,2]
[310012742,1704286235774,-162.62,0.00022521,2]
[310012743,1704286235785,-2605.87309653,0.00022571,2]
[310012744,1704286235796,-16713.83662006,0.00022571,2]
[310012745,1704286235807,-18956.58157169,0.00022571,2]
[310012746,1704286235817,-3147.28,0.00022578,2]
[310012747,1704286235828,-1903.58,0.00022578,2]
[310012748,1704286235839,-211.29,0.00022578,2]
[310012749,1704286235850,-353.99,0.00022578,2]
[310012750,1704286235861,-276.44,0.00022578,2]
[310012751,1704286235872,-150.0,0.00022581,2]
[310012752,1704286235883,-162.62,0.00022582,2]
[310012753,1704286235894,-162.62,0.00022644,2]
[310012754,1704286235904,-162.62,0.00022706,2]
[310012755,1704286235915,-354.04487561,0.00022709,2]
[310012756,1704286235925,-162.62,0.00022767,2]
[310012757,1704286235936,-158.64,0.00022793,2]
[310012758,1704286235947,-3491.89691943,0.00022796,2]
[310012759,1704286235958,-112861.0428645,0.00022806,2]
[310012760,1704286235971,-670.9951114,0.00022809,2]
[310012761,1704286235985,-392.28536623,0.00022823,2]
[310012762,1704286235996,-162.62,0.00022829,2]
[310012763,1704286236006,-162.62,0.0002289,2]
[310012764,1704286236017,-155.0,0.00022922,2]
[310012765,1704286236030,-710.23601992,0.00022923,2]
[310012766,1704286236051,-5081.08921157,0.00022923,2]
[310012767,1704286236061,-271.40000003,0.00022923,2]
[310012768,1704286236071,-162.62,0.00022952,2]
[310012769,1704286236081,-931.13114601,0.00023,2]
[310012770,1704286236091,-162.62,0.00023013,2]
[310012771,1704286236102,-308.66623732,0.00023043,2]
[310012773,1704286236112,-317.68758824,0.00023046,2]
[310012775,1704286236123,-2258.59589584,0.00023046,2]
[310012777,1704286236133,-525.42781145,0.00023049,7]
[310012779,1704286236144,-162.62,0.00023075,2]
[310012782,1704286236155,-162.62,0.00023137,2]
[310012784,1704286236165,-162.62,0.00023198,2]
[310012786,1704286236176,-162.62,0.0002326,2]
[310012787,1704286236187,-392.28536604,0.00023274,2]
[310012789,1704286236198,-162.62,0.00023321,2]
[310012792,1704286236208,-162.62,0.00023383,2]
[310012794,1704286236221,-162.62,0.00023445,2]
[310012796,1704286236232,-1977.84,0.00023489,2]
[310012798,1704286236242,-162.62,0.00023506,2]
[310012799,1704286236252,-500.0,0.00023559,2]
[310012800,1704286236263,-162.62,0.00023568,2]
[310012801,1704286236273,-162.62,0.00023629,2]
[310012802,1704286236284,-528.86568736,0.00023645,2]
[310012803,1704286236294,-235.68,0.00023687,10]